[Event "Titled Tuesday Blitz August 09 Early 2022"]
[White "Costachi, Mihnea"]
[Black "Levitskiy, Andrey"]
[WhiteFideId "1217518"]
[BlackFideId "14132885"]
[WhiteElo "2437"]
[BlackElo "2293"]
[Result "0-1"]
[Round "09"]
[TimeControl "180+1"]
[Date "2022.08.09"]
[WhiteClock "0:01:16"]
[BlackClock "0:00:09"]

1. e4 {[%clk 0:02:57]}  e6 {[%clk 0:03:00]} 2. Qe2 {[%clk 0:02:56]}  c5 {[%clk 0:02:59]} 3. b3 {[%clk 0:02:48]}  Nc6 {[%clk 0:02:51]} 4. Nf3 {[%clk 0:02:48]}  d6 {[%clk 0:02:47]} 5. Bb2 {[%clk 0:02:48]}  Nf6 {[%clk 0:02:48]} 6. g3 {[%clk 0:02:41]}  e5 {[%clk 0:02:37]} 7. Bg2 {[%clk 0:02:40]}  g6 {[%clk 0:02:33]} 8. c3 {[%clk 0:02:38]}  Bg7 {[%clk 0:02:33]} 9. O-O {[%clk 0:02:38]}  O-O {[%clk 0:02:33]} 10. h3 {[%clk 0:02:39]}  Re8 {[%clk 0:02:30]} 11. d3 {[%clk 0:02:40]}  h6 {[%clk 0:02:28]} 12. Nbd2 {[%clk 0:02:40]}  Be6 {[%clk 0:02:15]} 13. Rfd1 {[%clk 0:02:30]}  Qd7 {[%clk 0:02:14]} 14. Kh2 {[%clk 0:02:29]}  Rad8 {[%clk 0:01:53]} 15. a3 {[%clk 0:02:25]}  a5 {[%clk 0:01:13]} 16. c4 {[%clk 0:02:23]}  Nh7 {[%clk 0:01:00]} 17. Rf1 {[%clk 0:02:17]}  Rf8 {[%clk 0:01:00]} 18. Nh4 {[%clk 0:02:12]}  Bf6 {[%clk 0:00:38]} 19. Nhf3 {[%clk 0:02:11]}  Rde8 {[%clk 0:00:34]} 20. Nb1 {[%clk 0:02:10]}  Bg7 {[%clk 0:00:29]} 21. Nc3 {[%clk 0:02:10]}  f5 {[%clk 0:00:28]} 22. Nd5 {[%clk 0:02:09]}  f4 {[%clk 0:00:18]} 23. Nh4 {[%clk 0:02:09]}  Qf7 {[%clk 0:00:13]} 24. g4 {[%clk 0:02:05]}  Kh8 {[%clk 0:00:05]} 25. Bf3 {[%clk 0:02:03]}  Ng5 {[%clk 0:00:05]} 26. Ng2 {[%clk 0:01:58]}  Kh7 {[%clk 0:00:05]} 27. h4 {[%clk 0:01:57]}  Nxf3+ {[%clk 0:00:05]} 28. Qxf3 {[%clk 0:01:58]}  Bxd5 {[%clk 0:00:06]} 29. cxd5 {[%clk 0:01:57]}  Ne7 {[%clk 0:00:05]} 30. h5 {[%clk 0:01:52]}  gxh5 {[%clk 0:00:04]} 31. gxh5 {[%clk 0:01:53]}  Bf6 {[%clk 0:00:05]} 32. Ne1 {[%clk 0:01:43]}  Rg8 {[%clk 0:00:05]} 33. Qh3 {[%clk 0:01:43]}  Rg5 {[%clk 0:00:05]} 34. Rh1 {[%clk 0:01:30]}  Rxh5 {[%clk 0:00:05]} 35. Kg2 {[%clk 0:01:31]}  Rg8+ {[%clk 0:00:04]} 36. Kf1 {[%clk 0:01:30]}  Rxh3 {[%clk 0:00:05]} 37. Rxh3 {[%clk 0:01:31]}  Qg6 {[%clk 0:00:05]} 38. Rh1 {[%clk 0:01:30]}  Qg4 {[%clk 0:00:05]} 39. Bc3 {[%clk 0:01:27]}  f3 {[%clk 0:00:05]} 40. Bd2 {[%clk 0:01:24]}  Bg5 {[%clk 0:00:05]} 41. Bxg5 {[%clk 0:01:23]}  Rxg5 {[%clk 0:00:05]} 42. Rc1 {[%clk 0:01:22]}  Ng6 {[%clk 0:00:06]} 43. d4 {[%clk 0:01:21]}  exd4 {[%clk 0:00:06]} 44. Rd1 {[%clk 0:01:22]}  Nf4 {[%clk 0:00:06]} 45. b4 {[%clk 0:01:21]}  axb4 {[%clk 0:00:06]} 46. axb4 {[%clk 0:01:22]}  cxb4 {[%clk 0:00:07]} 47. Rxd4 {[%clk 0:01:22]}  Ng2 {[%clk 0:00:06]} 48. Rxb4 {[%clk 0:01:20]}  Nxe1 {[%clk 0:00:06]} 49. Kxe1 {[%clk 0:01:21]}  Qg2 {[%clk 0:00:07]} 50. Rf1 {[%clk 0:01:18]}  Re5 {[%clk 0:00:06]} 51. Rxb7+ {[%clk 0:01:17]}  Kg6 {[%clk 0:00:07]} 52. Rb4 {[%clk 0:01:18]}  Qg4 {[%clk 0:00:07]} 53. Kd2 {[%clk 0:01:18]}  Rxe4 {[%clk 0:00:08]} 54. Rxe4 {[%clk 0:01:18]}  Qxe4 {[%clk 0:00:08]} 55. Rg1+ {[%clk 0:01:19]}  Kf5 {[%clk 0:00:09]} 56. Rh1 {[%clk 0:01:19]}  Qe2+ {[%clk 0:00:09]} 57. Kc3 {[%clk 0:01:19]}  Qxf2 {[%clk 0:00:09]} 58. Rh5+ {[%clk 0:01:17]}  Kg6 {[%clk 0:00:09]} 59. Rh1 {[%clk 0:01:16]}  Qg2 {[%clk 0:00:09]} 60. Rg1 {[%clk 0:01:16]}  Qxg1 {[%clk 0:00:09]} 0-1


[Site "https://www.chess.com"]

[Event "Titled Tuesday Blitz August 09 Early 2022"]
[White "D`Arruda, Ricardo D."]
[Black "Ouellet, Maili-Jade"]
[WhiteFideId "100692"]
[BlackFideId "2620472"]
[WhiteElo "2464"]
[BlackElo "1899"]
[Result "1-0"]
[Round "09"]
[TimeControl "180+1"]
[Date "2022.08.09"]
[WhiteClock "0:00:19"]
[BlackClock "0:00:02"]

1. Nf3 {[%clk 0:03:00]}  d5 {[%clk 0:02:58]} 2. g3 {[%clk 0:03:00]}  Nf6 {[%clk 0:02:58]} 3. Bg2 {[%clk 0:03:00]}  e6 {[%clk 0:02:58]} 4. O-O {[%clk 0:03:00]}  Be7 {[%clk 0:02:57]} 5. c4 {[%clk 0:02:59]}  O-O {[%clk 0:02:57]} 6. d4 {[%clk 0:02:59]}  dxc4 {[%clk 0:02:56]} 7. Ne5 {[%clk 0:02:57]}  Nc6 {[%clk 0:02:56]} 8. Nxc6 {[%clk 0:02:52]}  bxc6 {[%clk 0:02:57]} 9. Bxc6 {[%clk 0:02:52]}  Rb8 {[%clk 0:02:57]} 10. Nc3 {[%clk 0:02:51]}  Bb7 {[%clk 0:02:55]} 11. Qa4 {[%clk 0:02:49]}  Qxd4 {[%clk 0:02:37]} 12. Be3 {[%clk 0:02:41]}  Bxc6 {[%clk 0:02:29]} 13. Qxc6 {[%clk 0:02:32]}  Qd6 {[%clk 0:02:27]} 14. Qxc4 {[%clk 0:02:30]}  Rxb2 {[%clk 0:02:23]} 15. Bxa7 {[%clk 0:02:27]}  Rc2 {[%clk 0:01:43]} 16. Rac1 {[%clk 0:02:08]}  Rxc1 {[%clk 0:01:41]} 17. Rxc1 {[%clk 0:02:09]}  Ra8 {[%clk 0:01:39]} 18. Bd4 {[%clk 0:01:55]}  c6 {[%clk 0:01:14]} 19. Bxf6 {[%clk 0:01:22]}  gxf6 {[%clk 0:01:03]} 20. Ne4 {[%clk 0:01:22]}  Qd5 {[%clk 0:00:56]} 21. Qxc6 {[%clk 0:01:06]}  Qxc6 {[%clk 0:00:51]} 22. Rxc6 {[%clk 0:01:07]}  Rxa2 {[%clk 0:00:50]} 23. Rc7 {[%clk 0:01:05]}  Rxe2 {[%clk 0:00:42]} 24. f3 {[%clk 0:00:56]}  f5 {[%clk 0:00:33]} 25. Nf2 {[%clk 0:00:45]}  Bf6 {[%clk 0:00:29]} 26. Kf1 {[%clk 0:00:43]}  Ra2 {[%clk 0:00:28]} 27. Rc4 {[%clk 0:00:42]}  Kg7 {[%clk 0:00:27]} 28. h4 {[%clk 0:00:38]}  Be5 {[%clk 0:00:26]} 29. f4 {[%clk 0:00:37]}  Bb8 {[%clk 0:00:24]} 30. Nh3 {[%clk 0:00:26]}  Ba7 {[%clk 0:00:20]} 31. Rc7 {[%clk 0:00:21]}  h6 {[%clk 0:00:18]} 32. Rb7 {[%clk 0:00:20]}  Bd4 {[%clk 0:00:16]} 33. Rd7 {[%clk 0:00:20]}  Bf6 {[%clk 0:00:11]} 34. Nf2 {[%clk 0:00:19]}  Bd4 {[%clk 0:00:11]} 35. Rxd4 {[%clk 0:00:18]}  Ra3 {[%clk 0:00:11]} 36. Kg2 {[%clk 0:00:17]}  Kf6 {[%clk 0:00:10]} 37. Rd3 {[%clk 0:00:18]}  Ra4 {[%clk 0:00:09]} 38. Kf3 {[%clk 0:00:18]}  Ra2 {[%clk 0:00:09]} 39. Nd1 {[%clk 0:00:18]}  Ra4 {[%clk 0:00:09]} 40. Ne3 {[%clk 0:00:19]}  Ra2 {[%clk 0:00:08]} 41. Nc4 {[%clk 0:00:18]}  Rc2 {[%clk 0:00:08]} 42. Ne5 {[%clk 0:00:18]}  Ra2 {[%clk 0:00:04]} 43. Rd7 {[%clk 0:00:18]}  Ra3+ {[%clk 0:00:04]} 44. Kg2 {[%clk 0:00:18]}  Ra2+ {[%clk 0:00:02]} 45. Kh3 {[%clk 0:00:19]}  Ra3 {[%clk 0:00:02]} 46. Rxf7# {[%clk 0:00:19]} 1-0


[Site "https://www.chess.com"]

[Event "Titled Tuesday Blitz August 09 Early 2022"]
[White "Demchenko, Anton"]
[Black "Donchenko, Alexander"]
[WhiteFideId "4160258"]
[BlackFideId "24603295"]
[WhiteElo "2539"]
[BlackElo "2572"]
[Result "0-1"]
[Round "09"]
[TimeControl "180+1"]
[Date "2022.08.09"]
[WhiteClock "0:00:13"]
[BlackClock "0:02:18"]

1. e4 {[%clk 0:03:00]}  c5 {[%clk 0:02:59]} 2. Nf3 {[%clk 0:03:00]}  e6 {[%clk 0:03:00]} 3. g3 {[%clk 0:03:00]}  Nc6 {[%clk 0:02:59]} 4. Bg2 {[%clk 0:03:00]}  g6 {[%clk 0:03:00]} 5. c3 {[%clk 0:02:54]}  Bg7 {[%clk 0:02:59]} 6. d4 {[%clk 0:02:36]}  cxd4 {[%clk 0:02:59]} 7. cxd4 {[%clk 0:02:37]}  d5 {[%clk 0:02:59]} 8. e5 {[%clk 0:02:36]}  Nge7 {[%clk 0:02:59]} 9. O-O {[%clk 0:02:35]}  b6 {[%clk 0:02:59]} 10. Nc3 {[%clk 0:02:30]}  Ba6 {[%clk 0:02:58]} 11. Re1 {[%clk 0:02:30]}  Qd7 {[%clk 0:02:57]} 12. a3 {[%clk 0:02:17]}  Na5 {[%clk 0:02:56]} 13. h4 {[%clk 0:02:10]}  h6 {[%clk 0:02:56]} 14. Nh2 {[%clk 0:02:04]}  Bc4 {[%clk 0:02:49]} 15. b4 {[%clk 0:01:36]}  Nb3 {[%clk 0:02:48]} 16. Rb1 {[%clk 0:01:36]}  Nxc1 {[%clk 0:02:49]} 17. Rxc1 {[%clk 0:01:37]}  a5 {[%clk 0:02:48]} 18. Ng4 {[%clk 0:01:23]}  axb4 {[%clk 0:02:48]} 19. axb4 {[%clk 0:01:24]}  O-O {[%clk 0:02:45]} 20. Ne4 {[%clk 0:00:57]}  dxe4 {[%clk 0:02:42]} 21. Rxc4 {[%clk 0:00:57]}  Qb5 {[%clk 0:02:35]} 22. Rc2 {[%clk 0:00:43]}  Qxb4 {[%clk 0:02:33]} 23. Bxe4 {[%clk 0:00:41]}  Rac8 {[%clk 0:02:31]} 24. Re3 {[%clk 0:00:26]}  Rxc2 {[%clk 0:02:30]} 25. Bxc2 {[%clk 0:00:26]}  Rd8 {[%clk 0:02:29]} 26. Rd3 {[%clk 0:00:24]}  h5 {[%clk 0:02:20]} 27. Ne3 {[%clk 0:00:23]}  Nc6 {[%clk 0:02:19]} 28. d5 {[%clk 0:00:12]}  Nxe5 {[%clk 0:02:19]} 29. Rd2 {[%clk 0:00:13]}  Qxd2 {[%clk 0:02:18]} 0-1


[Site "https://www.chess.com"]

[Event "Titled Tuesday Blitz August 09 Early 2022"]
[White "Eynullayev, Altay"]
[Black "Maksimovic, Bojan"]
[WhiteFideId "13413562"]
[BlackFideId "14408120"]
[WhiteElo "2079"]
[BlackElo "2447"]
[Result "1-0"]
[Round "09"]
[TimeControl "180+1"]
[Date "2022.08.09"]
[WhiteClock "0:00:08"]
[BlackClock "0:00:04"]

1. e4 {[%clk 0:03:00]}  c5 {[%clk 0:03:00]} 2. Nf3 {[%clk 0:03:00]}  Nc6 {[%clk 0:03:00]} 3. Bb5 {[%clk 0:03:00]}  e6 {[%clk 0:02:58]} 4. O-O {[%clk 0:02:59]}  Nge7 {[%clk 0:02:58]} 5. Re1 {[%clk 0:03:00]}  a6 {[%clk 0:02:57]} 6. Bf1 {[%clk 0:03:00]}  b6 {[%clk 0:02:57]} 7. c3 {[%clk 0:02:57]}  d5 {[%clk 0:02:57]} 8. d3 {[%clk 0:02:56]}  dxe4 {[%clk 0:02:56]} 9. dxe4 {[%clk 0:02:56]}  Qxd1 {[%clk 0:02:56]} 10. Rxd1 {[%clk 0:02:56]}  Ng6 {[%clk 0:02:56]} 11. Nbd2 {[%clk 0:02:53]}  Bd6 {[%clk 0:02:39]} 12. Nc4 {[%clk 0:02:49]}  Bc7 {[%clk 0:02:40]} 13. Nd6+ {[%clk 0:02:49]}  Ke7 {[%clk 0:02:40]} 14. Nxc8+ {[%clk 0:02:47]}  Rhxc8 {[%clk 0:02:41]} 15. g3 {[%clk 0:02:46]}  b5 {[%clk 0:02:34]} 16. Be3 {[%clk 0:02:44]}  c4 {[%clk 0:02:32]} 17. h4 {[%clk 0:02:36]}  h6 {[%clk 0:02:25]} 18. h5 {[%clk 0:02:32]}  Nge5 {[%clk 0:02:25]} 19. Nxe5 {[%clk 0:02:31]}  Nxe5 {[%clk 0:02:24]} 20. f4 {[%clk 0:02:29]}  Ng4 {[%clk 0:02:11]} 21. Bc5+ {[%clk 0:02:20]}  Ke8 {[%clk 0:02:11]} 22. Be2 {[%clk 0:01:22]}  Nf6 {[%clk 0:02:11]} 23. e5 {[%clk 0:01:12]}  Ne4 {[%clk 0:02:09]} 24. Bf2 {[%clk 0:01:12]}  Nxf2 {[%clk 0:02:09]} 25. Kxf2 {[%clk 0:01:12]}  Bb6+ {[%clk 0:02:09]} 26. Kf3 {[%clk 0:01:05]}  Bc5 {[%clk 0:02:10]} 27. Ke4 {[%clk 0:01:04]}  Ke7 {[%clk 0:02:10]} 28. g4 {[%clk 0:01:04]}  Rab8 {[%clk 0:01:29]} 29. Rd2 {[%clk 0:00:59]}  Rd8 {[%clk 0:01:18]} 30. Rad1 {[%clk 0:00:58]}  Rxd2 {[%clk 0:01:18]} 31. Rxd2 {[%clk 0:00:59]}  a5 {[%clk 0:01:17]} 32. a4 {[%clk 0:00:37]}  bxa4 {[%clk 0:01:16]} 33. Bxc4 {[%clk 0:00:37]}  a3 {[%clk 0:01:02]} 34. bxa3 {[%clk 0:00:37]}  Bxa3 {[%clk 0:01:03]} 35. Ra2 {[%clk 0:00:37]}  Rc8 {[%clk 0:01:03]} 36. Kd3 {[%clk 0:00:37]}  Bc1 {[%clk 0:01:04]} 37. f5 {[%clk 0:00:31]}  Ra8 {[%clk 0:00:58]} 38. Ra4 {[%clk 0:00:28]}  Bf4 {[%clk 0:00:55]} 39. Ke4 {[%clk 0:00:28]}  Bh2 {[%clk 0:00:56]} 40. Bb5 {[%clk 0:00:24]}  Ra7 {[%clk 0:00:53]} 41. Rc4 {[%clk 0:00:21]}  Kd8 {[%clk 0:00:53]} 42. Rd4+ {[%clk 0:00:20]}  Kc8 {[%clk 0:00:53]} 43. f6 {[%clk 0:00:18]}  gxf6 {[%clk 0:00:50]} 44. exf6 {[%clk 0:00:19]}  Bg1 {[%clk 0:00:40]} 45. Rd6 {[%clk 0:00:18]}  Bh2 {[%clk 0:00:20]} 46. Rc6+ {[%clk 0:00:17]}  Kb7 {[%clk 0:00:20]} 47. Rc4 {[%clk 0:00:10]}  Kb6 {[%clk 0:00:20]} 48. Be8 {[%clk 0:00:10]}  Bd6 {[%clk 0:00:12]} 49. g5 {[%clk 0:00:10]}  hxg5 {[%clk 0:00:13]} 50. h6 {[%clk 0:00:09]}  Ra8 {[%clk 0:00:13]} 51. Bxf7 {[%clk 0:00:09]}  Rf8 {[%clk 0:00:14]} 52. h7 {[%clk 0:00:06]}  Rh8 {[%clk 0:00:14]} 53. Bg8 {[%clk 0:00:07]}  g4 {[%clk 0:00:15]} 54. Rd4 {[%clk 0:00:06]}  Kc6 {[%clk 0:00:14]} 55. Rc4+ {[%clk 0:00:05]}  Kb6 {[%clk 0:00:14]} 56. Rd4 {[%clk 0:00:05]}  Kc6 {[%clk 0:00:14]} 57. Rd1 {[%clk 0:00:06]}  g3 {[%clk 0:00:14]} 58. Rg1 {[%clk 0:00:06]}  a4 {[%clk 0:00:14]} 59. f7 {[%clk 0:00:06]}  Kd7 {[%clk 0:00:03]} 60. Rxg3 {[%clk 0:00:07]}  Ke7 {[%clk 0:00:04]} 61. Rg1 {[%clk 0:00:07]}  a3 {[%clk 0:00:05]} 62. Ra1 {[%clk 0:00:07]}  Kf8 {[%clk 0:00:05]} 63. c4 {[%clk 0:00:08]}  Ke7 {[%clk 0:00:05]} 64. Kd4 {[%clk 0:00:08]}  Bb4 {[%clk 0:00:05]} 65. c5 {[%clk 0:00:08]}  Kd7 {[%clk 0:00:06]} 66. Kc4 {[%clk 0:00:08]}  Ba5 {[%clk 0:00:04]} 67. f8=Q {[%clk 0:00:08]} 1-0


[Site "https://www.chess.com"]

[Event "Titled Tuesday Blitz August 09 Early 2022"]
[White "Fernandez Hernandez, Gerardo"]
[Black "Sanchez Alvares, Kelvin Antonio"]
[WhiteFideId "2207400"]
[BlackFideId "3906680"]
[WhiteElo "2165"]
[BlackElo "2189"]
[Result "1-0"]
[Round "09"]
[TimeControl "180+1"]
[Date "2022.08.09"]
[WhiteClock "0:00:05"]
[BlackClock "0:00:06"]

1. e4 {[%clk 0:02:56]}  c5 {[%clk 0:02:59]} 2. d3 {[%clk 0:02:54]}  Nc6 {[%clk 0:02:52]} 3. g3 {[%clk 0:02:54]}  d6 {[%clk 0:02:45]} 4. Bg2 {[%clk 0:02:55]}  Nf6 {[%clk 0:02:45]} 5. f4 {[%clk 0:02:55]}  e6 {[%clk 0:02:43]} 6. Nf3 {[%clk 0:02:55]}  Be7 {[%clk 0:02:40]} 7. O-O {[%clk 0:02:54]}  O-O {[%clk 0:02:39]} 8. Nc3 {[%clk 0:02:53]}  b6 {[%clk 0:02:39]} 9. Bd2 {[%clk 0:02:41]}  Bb7 {[%clk 0:02:39]} 10. f5 {[%clk 0:02:35]}  Nd4 {[%clk 0:02:18]} 11. Nxd4 {[%clk 0:02:25]}  cxd4 {[%clk 0:02:17]} 12. Ne2 {[%clk 0:02:24]}  e5 {[%clk 0:02:15]} 13. c3 {[%clk 0:02:15]}  dxc3 {[%clk 0:02:04]} 14. Nxc3 {[%clk 0:02:12]}  d5 {[%clk 0:01:55]} 15. Bg5 {[%clk 0:02:05]}  d4 {[%clk 0:01:44]} 16. Bxf6 {[%clk 0:02:05]}  Bxf6 {[%clk 0:01:43]} 17. Nd5 {[%clk 0:02:02]}  Qd6 {[%clk 0:01:08]} 18. Qd2 {[%clk 0:01:52]}  h6 {[%clk 0:01:04]} 19. h4 {[%clk 0:01:52]}  Rac8 {[%clk 0:01:00]} 20. Rac1 {[%clk 0:01:50]}  Rxc1 {[%clk 0:00:45]} 21. Rxc1 {[%clk 0:01:49]}  Rc8 {[%clk 0:00:41]} 22. Kh2 {[%clk 0:01:28]}  Rxc1 {[%clk 0:00:31]} 23. Qxc1 {[%clk 0:01:29]}  Bxd5 {[%clk 0:00:29]} 24. exd5 {[%clk 0:01:28]}  Qc5 {[%clk 0:00:26]} 25. Qxc5 {[%clk 0:01:20]}  bxc5 {[%clk 0:00:26]} 26. b3 {[%clk 0:01:13]}  Kf8 {[%clk 0:00:26]} 27. Be4 {[%clk 0:00:54]}  Ke7 {[%clk 0:00:26]} 28. Kg2 {[%clk 0:00:52]}  Kd6 {[%clk 0:00:26]} 29. Kf2 {[%clk 0:00:52]}  Kc7 {[%clk 0:00:20]} 30. Ke2 {[%clk 0:00:49]}  Kb6 {[%clk 0:00:21]} 31. Kd2 {[%clk 0:00:47]}  Ka5 {[%clk 0:00:21]} 32. Kc2 {[%clk 0:00:46]}  Be7 {[%clk 0:00:20]} 33. Kb2 {[%clk 0:00:37]}  Bd6 {[%clk 0:00:19]} 34. Kc2 {[%clk 0:00:34]}  Kb4 {[%clk 0:00:19]} 35. Kb2 {[%clk 0:00:33]}  a5 {[%clk 0:00:19]} 36. a3+ {[%clk 0:00:30]}  Kb5 {[%clk 0:00:18]} 37. Kc2 {[%clk 0:00:30]}  a4 {[%clk 0:00:18]} 38. Kb2 {[%clk 0:00:29]}  axb3 {[%clk 0:00:18]} 39. Kxb3 {[%clk 0:00:30]}  Ka5 {[%clk 0:00:17]} 40. g4 {[%clk 0:00:26]}  h5 {[%clk 0:00:15]} 41. f6 {[%clk 0:00:15]}  g6 {[%clk 0:00:11]} 42. gxh5 {[%clk 0:00:15]}  gxh5 {[%clk 0:00:11]} 43. Bf3 {[%clk 0:00:14]}  Bc7 {[%clk 0:00:09]} 44. Bxh5 {[%clk 0:00:13]}  Bd8 {[%clk 0:00:09]} 45. Bxf7 {[%clk 0:00:11]}  Bxf6 {[%clk 0:00:10]} 46. h5 {[%clk 0:00:11]}  Bg7 {[%clk 0:00:09]} 47. d6 {[%clk 0:00:10]}  Kb6 {[%clk 0:00:07]} 48. Bd5 {[%clk 0:00:06]}  Bf6 {[%clk 0:00:06]} 49. h6 {[%clk 0:00:05]} 1-0


[Site "https://www.chess.com"]

[Event "Titled Tuesday Blitz August 09 Early 2022"]
[White "Ferreira, Vitor Hugo Vieira"]
[Black "Rangel, Daniel"]
[WhiteFideId "2119765"]
[BlackFideId "2124475"]
[WhiteElo "2168"]
[BlackElo "2225"]
[Result "1-0"]
[Round "09"]
[TimeControl "180+1"]
[Date "2022.08.09"]
[WhiteClock "0:02:14"]
[BlackClock "0:00:27"]

1. d4 {[%clk 0:03:00]}  Nf6 {[%clk 0:02:58]} 2. c4 {[%clk 0:03:00]}  g6 {[%clk 0:02:59]} 3. Nc3 {[%clk 0:03:00]}  Bg7 {[%clk 0:02:58]} 4. e4 {[%clk 0:03:00]}  O-O {[%clk 0:02:58]} 5. f3 {[%clk 0:03:01]}  c6 {[%clk 0:02:58]} 6. Be3 {[%clk 0:02:57]}  d5 {[%clk 0:02:57]} 7. e5 {[%clk 0:02:57]}  Ne8 {[%clk 0:02:53]} 8. f4 {[%clk 0:02:57]}  Nc7 {[%clk 0:02:51]} 9. Nf3 {[%clk 0:02:57]}  dxc4 {[%clk 0:02:47]} 10. Bxc4 {[%clk 0:02:57]}  Nd7 {[%clk 0:02:41]} 11. O-O {[%clk 0:02:53]}  Nb6 {[%clk 0:02:40]} 12. Bb3 {[%clk 0:02:51]}  Ncd5 {[%clk 0:02:39]} 13. Bd2 {[%clk 0:02:50]}  Bg4 {[%clk 0:02:30]} 14. h3 {[%clk 0:02:50]}  Bxf3 {[%clk 0:02:30]} 15. Qxf3 {[%clk 0:02:50]}  e6 {[%clk 0:02:31]} 16. Ne4 {[%clk 0:02:49]}  a5 {[%clk 0:02:27]} 17. a3 {[%clk 0:02:49]}  a4 {[%clk 0:02:27]} 18. Ba2 {[%clk 0:02:50]}  Nc8 {[%clk 0:02:17]} 19. Kh1 {[%clk 0:02:47]}  Nce7 {[%clk 0:02:08]} 20. Rad1 {[%clk 0:02:46]}  Nf5 {[%clk 0:02:08]} 21. Bc1 {[%clk 0:02:46]}  h5 {[%clk 0:02:05]} 22. g4 {[%clk 0:02:43]}  hxg4 {[%clk 0:02:03]} 23. hxg4 {[%clk 0:02:43]}  Nh4 {[%clk 0:01:29]} 24. Qh3 {[%clk 0:02:40]}  f5 {[%clk 0:01:18]} 25. Ng5 {[%clk 0:02:39]}  Nxf4 {[%clk 0:00:37]} 26. Qxh4 {[%clk 0:02:15]}  Qd5+ {[%clk 0:00:27]} 27. Bxd5 {[%clk 0:02:14]} 1-0


[Site "https://www.chess.com"]

[Event "Titled Tuesday Blitz August 09 Early 2022"]
[White "Floresvillar Gonzalez, Luis Migu"]
[Black "Ezov"]
[WhiteFideId "5100542"]
[WhiteElo "2040"]
[BlackElo "2305"]
[Result "1/2-1/2"]
[Round "09"]
[TimeControl "180+1"]
[Date "2022.08.09"]
[WhiteClock "0:01:32"]
[BlackClock "0:01:38"]

1. d4 {[%clk 0:03:00]}  Nf6 {[%clk 0:02:59]} 2. c3 {[%clk 0:03:00]}  g6 {[%clk 0:02:57]} 3. Bg5 {[%clk 0:02:59]}  Ne4 {[%clk 0:02:56]} 4. h4 {[%clk 0:02:58]}  Bg7 {[%clk 0:02:54]} 5. Nd2 {[%clk 0:02:57]}  Nxg5 {[%clk 0:02:52]} 6. hxg5 {[%clk 0:02:57]}  c5 {[%clk 0:02:52]} 7. e3 {[%clk 0:02:55]}  d5 {[%clk 0:02:52]} 8. f4 {[%clk 0:02:55]}  Nc6 {[%clk 0:02:52]} 9. Ngf3 {[%clk 0:02:54]}  Bf5 {[%clk 0:02:52]} 10. Qb3 {[%clk 0:02:53]}  Qb6 {[%clk 0:02:32]} 11. dxc5 {[%clk 0:02:45]}  Qxc5 {[%clk 0:02:28]} 12. Nd4 {[%clk 0:02:39]}  Nxd4 {[%clk 0:02:26]} 13. exd4 {[%clk 0:02:38]}  Qc7 {[%clk 0:02:19]} 14. Bb5+ {[%clk 0:02:35]}  Kf8 {[%clk 0:02:16]} 15. g3 {[%clk 0:02:33]}  a6 {[%clk 0:02:12]} 16. Be2 {[%clk 0:02:30]}  Rd8 {[%clk 0:02:09]} 17. Nf3 {[%clk 0:02:27]}  Be4 {[%clk 0:02:07]} 18. Kf2 {[%clk 0:02:24]}  h5 {[%clk 0:02:03]} 19. gxh6 {[%clk 0:02:20]}  Rxh6 {[%clk 0:01:59]} 20. Rxh6 {[%clk 0:02:20]}  Bxh6 {[%clk 0:01:59]} 21. Rh1 {[%clk 0:02:15]}  Kg7 {[%clk 0:01:54]} 22. Rh2 {[%clk 0:02:06]}  Bxf4 {[%clk 0:01:50]} 23. gxf4 {[%clk 0:02:04]}  Qxf4 {[%clk 0:01:50]} 24. Rh4 {[%clk 0:01:50]}  Qf6 {[%clk 0:01:39]} 25. Rh2 {[%clk 0:01:36]}  Qf4 {[%clk 0:01:38]} 26. Rh4 {[%clk 0:01:33]}  Qf6 {[%clk 0:01:38]} 27. Rh2 {[%clk 0:01:32]}  Qf4 {[%clk 0:01:38]} 1/2-1/2


[Site "https://www.chess.com"]